fUSD/lending_fUSD_20260610
["ID","MTS","AMOUNT","RATE_DAILY","PERIOD"]
[424727498,1781092232000,-222.0,0.00013732,2]
[424727487,1781092232000,-221.0,0.00013632,2]
[424727495,1781092232000,-221.0,0.00013732,2]
[424727492,1781092232000,-3053.8,0.00013699,2]
[424727490,1781092232000,-166.66,0.00013667,2]
[424727491,1781092232000,-299.99,0.00013699,2]
[424727493,1781092232000,-228.0,0.00013732,2]
[424727494,1781092232000,-229.0,0.00013732,2]
[424727496,1781092232000,-226.0,0.00013732,2]
[424727497,1781092232000,-227.0,0.00013732,2]
[424727499,1781092232000,-223.0,0.00013732,2]
[424727449,1781092232000,-226.0,0.00012938,2]
[424727489,1781092232000,-228.0,0.00013632,2]
[424727474,1781092232000,-226.0,0.00013038,2]
[424727484,1781092232000,-227.0,0.00013632,2]
[424727471,1781092232000,-226.0,0.00013038,2]
[424727451,1781092232000,-225.0,0.00012938,2]
[424727446,1781092232000,-225.0,0.00012938,2]
[424727445,1781092232000,-229.0,0.00012938,2]
[424727453,1781092232000,-224.0,0.00012938,2]
[424727473,1781092232000,-228.0,0.00013038,2]
[424727456,1781092232000,-221.0,0.00012938,2]
[424727455,1781092232000,-226.0,0.00012938,2]
[424727454,1781092232000,-223.0,0.00012938,2]
[424727457,1781092232000,-227.0,0.00012938,2]
[424727459,1781092232000,-224.0,0.00012938,2]
[424727461,1781092232000,-225.0,0.00012938,2]
[424727458,1781092232000,-223.0,0.00012938,2]
[424727452,1781092232000,-229.0,0.00012938,2]
[424727462,1781092232000,-227.0,0.00012938,2]
[424727460,1781092232000,-223.0,0.00012938,2]
[424727465,1781092232000,-224.0,0.00013038,2]
[424727466,1781092232000,-226.0,0.00013038,2]
[424727472,1781092232000,-229.0,0.00013038,2]
[424727467,1781092232000,-221.0,0.00013038,2]
[424727470,1781092232000,-227.0,0.00013038,2]
[424727500,1781092232000,-229.0,0.00013732,2]
[424727468,1781092232000,-228.0,0.00013038,2]
[424727463,1781092232000,-228.0,0.00012938,2]
[424727464,1781092232000,-226.0,0.00013038,2]
[424727469,1781092232000,-229.0,0.00013038,2]
[424727515,1781092233000,-300.0,0.00013902,2]
[424727504,1781092233000,-600.0,0.00013902,2]
[424727517,1781092233000,-297.82317922,0.00013902,2]
[424727518,1781092233000,-166.66,0.00013954,2]
[424727513,1781092233000,-206.84483967,0.00013902,2]
[424727512,1781092233000,-150.0,0.00013902,2]
[424727505,1781092233000,-300.0,0.00013902,2]
[424727503,1781092233000,-600.0,0.00013902,2]
[424727502,1781092233000,-600.0,0.00013902,2]
[424727510,1781092233000,-2500.0,0.00013902,2]
[424727508,1781092233000,-300.0,0.00013902,2]
[424727507,1781092233000,-300.0,0.00013902,2]
[424727509,1781092233000,-300.0,0.00013902,2]
[424727511,1781092233000,-193.0,0.00013902,2]
[424727501,1781092233000,-600.0,0.00013902,2]
[424727514,1781092233000,-376.09168747,0.00013902,2]
[424727506,1781092233000,-300.0,0.00013902,2]
[424727524,1781092233000,-250.0,0.00014,2]
[424727525,1781092233000,-600.0,0.00014012,2]
[424727516,1781092233000,-300.0,0.00013902,2]
[424727534,1781092233000,-200.0,0.00015145,2]
[424727536,1781092233000,-170.47,0.0001552,2]
[424727533,1781092233000,-166.66,0.00015105,2]
[424727531,1781092233000,-150.0,0.00014895,2]
[424727532,1781092233000,-14281.61325543,0.0001499,2]
[424727529,1781092233000,-170.47,0.00014781,2]
[424727530,1781092233000,-166.66,0.00014818,2]
[424727528,1781092233000,-338.58,0.00014648,2]
[424727535,1781092233000,-163.57,0.00015447,2]
[424727537,1781092233000,-259077.75967927,0.0001589,2]
[424727527,1781092233000,-166.66,0.0001453,2]
[424727521,1781092233000,-200.0,0.00013957,2]
[424727522,1781092233000,-200.0,0.00013957,2]
[424727520,1781092233000,-200.0,0.00013957,2]
[424727523,1781092233000,-262.949195,0.00013957,2]
[424727519,1781092233000,-200.0,0.00013957,2]
[424727526,1781092233000,-166.66,0.00014242,2]
[424727538,1781092234000,-23924.98960806,0.0001589,2]
[424727539,1781092234000,-3200.41564869,0.0001589,2]
[424727541,1781092234000,-338.58,0.0001589,2]
[424727540,1781092234000,-339.86301301,0.0001589,2]
[424727555,1781092237000,-500.0,0.00015889,2]
[424727543,1781092237000,-224.0,0.00012638,2]
[424727549,1781092237000,-500.0,0.00015889,2]
[424727545,1781092237000,-483.15288023,0.00015889,2]
[424727544,1781092237000,-215.92376884,0.0001309,2]
[424727551,1781092237000,-500.0,0.00015889,2]
[424727553,1781092237000,-500.0,0.00015889,2]
[424727562,1781092237000,-307.98467348,0.00015889,2]
[424727547,1781092237000,-500.0,0.00015889,2]
[424727564,1781092237000,-500.0,0.00015889,2]
[424727557,1781092237000,-500.0,0.00015889,2]
[424727566,1781092237000,-152.47467348,0.00015889,2]
[424727560,1781092237000,-500.0,0.00015889,2]
[424727565,1781092237000,-500.0,0.00015889,2]
[424727559,1781092237000,-500.0,0.00015889,2]
[424727561,1781092237000,-548.42588046,0.00015889,2]
[424727558,1781092237000,-500.0,0.00015889,2]
[424727563,1781092237000,-192.01532652,0.00015889,2]
[424727567,1781092238000,-347.52532652,0.00015889,2]
[424727568,1781092238000,-500.0,0.00015889,2]
[424727570,1781092238000,-500.0,0.00015889,2]
[424727571,1781092238000,-1951.37467348,0.0001589,2]
[424727572,1781092238000,-1220.6109,0.0001589,2]
[424727573,1781092238000,-279.33883483,0.0001589,2]
[424727569,1781092238000,-500.0,0.00015889,2]
[424727872,1781092240000,-300.13246974,0.0001589,2]
[424727864,1781092240000,-2825.2977328,0.0001589,2]
[424727942,1781092241000,-2109.3632371,0.0001589,2]
[424727936,1781092241000,-792.10950028,0.0001589,2]
[424727939,1781092241000,-2868.59911662,0.0001589,2]
[424727945,1781092241000,-29280.45583502,0.0001589,2]
[424727944,1781092241000,-58722.60140814,0.0001589,2]
[424727946,1781092241000,-1000.0,0.0001589,2]
[424727947,1781092241000,-3633.0655814,0.0001589,2]
[424727943,1781092241000,-224.0,0.00013632,2]
[424727951,1781092242000,-290.0,0.0001589,2]
[424727953,1781092242000,-406.68995999,0.0001589,2]
[424727950,1781092242000,-340.0769359,0.0001589,2]
[424727952,1781092242000,-11178.70379702,0.0001589,2]
[424727955,1781092242000,-968.38065445,0.0001589,2]
[424727954,1781092242000,-429.6859176,0.0001589,2]
[424727959,1781092243000,-934.13766006,0.0001589,2]
[424727958,1781092243000,-779.09205523,0.0001589,2]
[424727957,1781092243000,-367.47934973,0.0001509,2]
[424727956,1781092243000,-5725.75309256,0.0001589,2]
[424727966,1781092245000,-551.86367503,0.0001589,2]
[424727967,1781092245000,-606.85964313,0.0001589,2]
[424727969,1781092245000,-5837.07173078,0.0001589,2]
[424727968,1781092245000,-966.40253308,0.0001589,2]
[424727974,1781092245000,-707.16647587,0.0001589,2]
[424727971,1781092245000,-370.45,0.0001589,2]
[424727973,1781092245000,-576.47645733,0.0001589,2]
[424727972,1781092245000,-1411.05551518,0.0001589,2]
[424727970,1781092245000,-1423.73176999,0.0001589,2]
[424727976,1781092246000,-635.5062481,0.0001589,2]
[424727977,1781092246000,-551668.33849392,0.0001589,2]
[424727975,1781092246000,-1783.65937132,0.0001589,2]
[424728012,1781092744000,-229.0,0.00012488,2]
[424728013,1781092744000,-228.0,0.00012488,2]
[424728010,1781092744000,-222.0,0.00012488,2]
[424728007,1781092744000,-221.0,0.00012488,2]
[424728009,1781092744000,-223.0,0.00012488,2]
[424728008,1781092744000,-227.0,0.00012488,2]
[424728006,1781092744000,-224.0,0.00012488,2]
[424728003,1781092744000,-2500.0,0.0001227,2]
[424728004,1781092744000,-2500.0,0.0001227,2]
[424728014,1781092744000,-224.0,0.00012488,2]
[424728001,1781092744000,-363.01997969,0.00011672,2]
[424728000,1781092744000,-258.42519712,0.000114,2]
[424727999,1781092744000,-327.9508807,0.000113,2]
[424727998,1781092744000,-782.49896655,9.04e-05,2]
[424728005,1781092744000,-2500.0,0.0001227,2]
[424728015,1781092744000,-222.0,0.00012488,2]
[424728002,1781092744000,-2500.0,0.00011944,2]
[424728016,1781092744000,-223.0,0.00012488,2]
[424728032,1781092744000,-226.0,0.00012588,2]
[424728017,1781092744000,-222.0,0.00012488,2]
[424728031,1781092744000,-223.0,0.00012588,2]
[424728030,1781092744000,-226.0,0.00012588,2]
[424728029,1781092744000,-224.0,0.00012588,2]
[424728028,1781092744000,-221.0,0.00012588,2]
[424728027,1781092744000,-822.2416,0.00012588,2]
[424728026,1781092744000,-150.0,0.00012587,2]
[424728033,1781092744000,-222.0,0.00012588,2]
[424728024,1781092744000,-193.98753391,0.0001254,2]
[424728025,1781092744000,-250.0,0.0001254,2]
[424728018,1781092744000,-228.0,0.00012488,2]
[424728019,1781092744000,-229.0,0.00012488,2]
[424728020,1781092744000,-223.0,0.00012494,2]
[424728011,1781092744000,-228.0,0.00012488,2]
[424728021,1781092744000,-223.0,0.00012494,2]
[424728022,1781092744000,-225.0,0.00012494,2]
[424728023,1781092744000,-2500.0,0.0001254,2]
[424728034,1781092745000,-223.0,0.00012588,2]
[424728035,1781092745000,-225.0,0.00012588,2]
[424728037,1781092745000,-228.0,0.00012588,2]
[424728038,1781092745000,-223.0,0.00012588,2]
[424728036,1781092745000,-225.0,0.00012588,2]
[424728039,1781092745000,-223.0,0.00012588,2]
[424728041,1781092745000,-227.0,0.00012588,2]
[424728043,1781092745000,2500.0,0.00011071,2]
[424728044,1781092745000,2212.87584203,0.00011071,2]
[424728042,1781092745000,-226.0,0.00012588,2]
[424728040,1781092745000,-226.0,0.00012588,2]
[424728045,1781092753000,500.0,0.0003013,120]
[424728046,1781092765000,500.0,0.0003013,120]
[424728047,1781092776000,500.0,0.0003013,120]
[424728049,1781092788000,500.0,0.0003013,120]
[424728050,1781092821000,338.15,0.0003013,120]
[424728051,1781092833000,300.0,0.0003013,120]
[424728055,1781093196000,-284.95203121,0.00011092,2]
[424728056,1781093196000,-181.23180333,0.00011488,2]
[424728060,1781093415000,-45.85844338,0.00012379,2]
[424728059,1781093415000,-225.0,0.00012013,2]
[424728058,1781093415000,-224.0,0.00012013,2]
[424728057,1781093415000,-129.15408366,0.00011488,2]
[424728062,1781093431000,-120.80155662,0.00012379,2]
[424728063,1781093431000,-132.66387427,0.00012501,2]
[424728065,1781093431000,-151.0,0.00012588,2]
[424728064,1781093431000,-94.33612573,0.00012501,2]
[424728066,1781093431000,-150.0,0.00012602,2]
[424728067,1781093431000,-220.45,0.00012619,2]
[424728068,1781093431000,-284.95203121,0.00012622,2]
[424728070,1781093431000,-166.66,0.00012639,2]
[424728071,1781093431000,-166.66,0.000129,2]
[424728072,1781093431000,-207.5,0.0001303,2]
[424728073,1781093431000,-500.0,0.00013123,2]
[424728075,1781093431000,-3530.47,0.00013331,2]
[424728074,1781093431000,-166.66,0.00013161,2]
[424728078,1781093431000,-617.56615039,0.00013453,2]
[424728076,1781093431000,-101.03902651,0.00013421,2]
[424728079,1781093431000,-271.90586894,0.00013453,2]
[424728077,1781093431000,-65.62097349,0.00013421,2]
[424728069,1781093431000,-260.1,0.00012632,2]
[424728080,1781093432000,-722.59956851,0.00013453,2]
[424728081,1781093432000,-1543.10841216,0.00013453,2]
[424728084,1781093432000,-3869.1563545,0.00013528,2]
[424728082,1781093432000,-745.71,0.00013528,2]
[424728083,1781093432000,-354.8836455,0.00013528,2]
[424728086,1781093432000,-811.50471421,0.00013547,2]
[424728088,1781093432000,-428.38597646,0.00013547,2]
[424728087,1781093432000,-1084.2323092,0.00013547,2]
[424728085,1781093432000,-604.26297659,0.00013547,2]
[424728156,1781093438000,-500.0,0.00013646,2]
[424728150,1781093438000,-500.0,0.00013646,2]
[424728152,1781093438000,-500.0,0.00013646,2]
[424728151,1781093438000,-500.0,0.00013646,2]
[424728163,1781093438000,-500.0,0.00013646,2]
[424728165,1781093438000,-427.90184446,0.00013646,2]
[424728154,1781093438000,-500.0,0.00013646,2]
[424728153,1781093438000,-500.0,0.00013646,2]
[424728155,1781093438000,-500.0,0.00013646,2]
[424728159,1781093438000,-500.0,0.00013646,2]
[424728161,1781093438000,-500.0,0.00013646,2]
[424728181,1781093438000,-1075.7415659,0.00013646,2]
[424728167,1781093438000,-500.0,0.00013646,2]
[424728169,1781093438000,-500.0,0.00013646,2]
[424728175,1781093438000,-301.70368048,0.00013646,2]
[424728173,1781093438000,-230.39947549,0.00013646,2]
[424728171,1781093438000,-256.43682364,0.00013646,2]
[424728179,1781093438000,-1075.7415659,0.00013646,2]
[424728177,1781093438000,-500.0,0.00013646,2]
[424728183,1781093438000,-1075.7415659,0.00013646,2]
[424728182,1781093438000,-1075.7415659,0.00013646,2]
[424728148,1781093438000,-133.91578517,0.00013646,2]
[424728157,1781093438000,-500.0,0.00013646,2]
[424728149,1781093438000,-500.0,0.00013646,2]
[424728185,1781093438000,-1075.7415659,0.00013646,2]
[424728145,1781093438000,-500.0,0.00013646,2]
[424728123,1781093438000,-280.8804703,0.00013547,2]
[424728127,1781093438000,-221.97126038,0.00013632,2]
[424728122,1781093438000,-228.0,0.00012501,2]
[424728124,1781093438000,-657.59463795,0.00013547,2]
[424728125,1781093438000,-186.58,0.00013595,2]
[424728126,1781093438000,-3.02873962,0.00013632,2]
[424728130,1781093438000,-298.02873962,0.00013646,2]
[424728129,1781093438000,-500.0,0.00013646,2]
[424728128,1781093438000,-150.0,0.00013645,2]
[424728131,1781093438000,-201.97126038,0.00013646,2]
[424728133,1781093438000,-58.147258,0.00013646,2]
[424728136,1781093438000,-500.0,0.00013646,2]
[424728132,1781093438000,-500.0,0.00013646,2]
[424728135,1781093438000,-500.0,0.00013646,2]
[424728134,1781093438000,-441.852742,0.00013646,2]
[424728137,1781093438000,-276.467258,0.00013646,2]
[424728138,1781093438000,-223.532742,0.00013646,2]
[424728140,1781093438000,-500.0,0.00013646,2]
[424728141,1781093438000,-500.0,0.00013646,2]
[424728139,1781093438000,-500.0,0.00013646,2]
[424728142,1781093438000,-500.0,0.00013646,2]
[424728144,1781093438000,-500.0,0.00013646,2]
[424728143,1781093438000,-500.0,0.00013646,2]
[424728147,1781093438000,-366.08421483,0.00013646,2]
[424728189,1781093438000,-1075.7415659,0.00013646,2]
[424728146,1781093438000,-500.0,0.00013646,2]
[424728192,1781093438000,-1075.7415659,0.00013646,2]
[424728242,1781093438000,-1075.7415659,0.00013646,2]
[424728243,1781093438000,-1075.7415659,0.00013646,2]
[424728245,1781093438000,-1107.85886557,0.00013646,2]
[424728256,1781093438000,-1107.85886557,0.00013646,2]
[424728250,1781093438000,-1107.85886557,0.00013646,2]
[424728244,1781093438000,-1075.7415659,0.00013646,2]
[424728252,1781093438000,-1107.85886557,0.00013646,2]
[424728248,1781093438000,-1107.85886557,0.00013646,2]
[424728251,1781093438000,-1107.85886557,0.00013646,2]
[424728253,1781093438000,-1107.85886557,0.00013646,2]
[424728246,1781093438000,-1107.85886557,0.00013646,2]
[424728247,1781093438000,-1107.85886557,0.00013646,2]
[424728254,1781093438000,-1107.85886557,0.00013646,2]
[424728258,1781093438000,-1107.85886557,0.00013646,2]
[424728260,1781093438000,-1107.85886557,0.00013646,2]
[424728273,1781093438000,-1107.85886557,0.00013646,2]
[424728275,1781093438000,-1107.85886557,0.00013646,2]
[424728261,1781093438000,-1107.85886557,0.00013646,2]
[424728266,1781093438000,-1107.85886557,0.00013646,2]
[424728264,1781093438000,-1107.85886557,0.00013646,2]
[424728270,1781093438000,-1107.85886557,0.00013646,2]
[424728268,1781093438000,-1107.85886557,0.00013646,2]
[424728187,1781093438000,-1075.7415659,0.00013646,2]
[424728239,1781093438000,-1075.7415659,0.00013646,2]
[424728271,1781093438000,-1107.85886557,0.00013646,2]
[424728249,1781093438000,-1107.85886557,0.00013646,2]
[424728237,1781093438000,-1075.7415659,0.00013646,2]
[424728194,1781093438000,-1075.7415659,0.00013646,2]
[424728235,1781093438000,-1075.7415659,0.00013646,2]
[424728190,1781093438000,-1075.7415659,0.00013646,2]
[424728196,1781093438000,-1075.7415659,0.00013646,2]
[424728206,1781093438000,-1075.7415659,0.00013646,2]
[424728208,1781093438000,-1075.7415659,0.00013646,2]
[424728198,1781093438000,-1075.7415659,0.00013646,2]
[424728214,1781093438000,-1075.7415659,0.00013646,2]
[424728200,1781093438000,-1075.7415659,0.00013646,2]
[424728212,1781093438000,-1075.7415659,0.00013646,2]
[424728204,1781093438000,-1075.7415659,0.00013646,2]
[424728216,1781093438000,-1075.7415659,0.00013646,2]
[424728227,1781093438000,-1075.7415659,0.00013646,2]
[424728210,1781093438000,-1075.7415659,0.00013646,2]
[424728217,1781093438000,-1075.7415659,0.00013646,2]
[424728219,1781093438000,-1075.7415659,0.00013646,2]
[424728225,1781093438000,-1075.7415659,0.00013646,2]
[424728233,1781093438000,-1075.7415659,0.00013646,2]
[424728223,1781093438000,-1075.7415659,0.00013646,2]
[424728221,1781093438000,-1075.7415659,0.00013646,2]
[424728231,1781093438000,-1075.7415659,0.00013646,2]
[424728229,1781093438000,-1075.7415659,0.00013646,2]
[424728241,1781093438000,-1075.7415659,0.00013646,2]
[424728202,1781093438000,-1075.7415659,0.00013646,2]
[424728358,1781093439000,-10643.74309581,0.00014878,2]
[424728346,1781093439000,-255.0,0.00014764,2]
[424728357,1781093439000,-10643.74309581,0.00014867,2]
[424728371,1781093439000,-10643.74309581,0.000149,2]
[424728360,1781093439000,-10643.74309581,0.00014889,2]
[424728355,1781093439000,-10643.74309581,0.00014856,2]
[424728348,1781093439000,-17709.86641458,0.00014765,2]
[424728353,1781093439000,-10643.74309581,0.00014844,2]
[424728340,1781093439000,-17709.86641458,0.00014361,2]
[424728338,1781093439000,-207.5,0.00014333,2]
[424728375,1781093439000,-1319.69926899,0.000149,2]
[424728350,1781093439000,-200.0,0.000148,2]
[424728373,1781093439000,-17709.86641458,0.000149,2]
[424728393,1781093439000,-150.0,0.00014918,2]
[424728377,1781093439000,-2113.16550768,0.000149,2]
[424728362,1781093439000,-426.605,0.00014899,2]
[424728367,1781093439000,-898.4963648,0.000149,2]
[424728369,1781093439000,-25595.2941,0.000149,2]
[424728364,1781093439000,-500.0,0.00014899,2]
[424728381,1781093439000,-150.0,0.00014918,2]
[424728383,1781093439000,-257.15629635,0.00014918,2]
[424728385,1781093439000,-150.56153269,0.00014918,2]
[424728387,1781093439000,-150.0,0.00014918,2]
[424728389,1781093439000,-150.0,0.00014918,2]
[424728391,1781093439000,-150.0,0.00014918,2]
[424728395,1781093439000,-150.0,0.00014918,2]
[424728342,1781093439000,-17709.86641458,0.00014496,2]
[424728379,1781093439000,-215.11933425,0.000149,2]
[424728344,1781093439000,-17709.86641458,0.0001463,2]
[424728295,1781093439000,-226.0,0.00013662,2]
[424728334,1781093439000,-17709.86641458,0.00014091,2]
[424728277,1781093439000,-1107.85886557,0.00013646,2]
[424728279,1781093439000,-573.59527936,0.00013646,2]
[424728281,1781093439000,-246.79614873,0.00013646,2]
[424728283,1781093439000,-500.0,0.00013646,2]
[424728397,1781093439000,-150.0,0.00014918,2]
[424728293,1781093439000,-278.7252,0.00013647,2]
[424728287,1781093439000,-2000.0,0.00013646,2]
[424728289,1781093439000,-250.0,0.00013646,2]
[424728291,1781093439000,-1500000.0,0.00013647,2]
[424728305,1781093439000,-500.0,0.00013698,2]
[424728301,1781093439000,-229.0,0.00013686,2]
[424728299,1781093439000,-166.66,0.00013682,2]
[424728297,1781093439000,-223.0,0.00013662,2]
[424728336,1781093439000,-17709.86641458,0.00014226,2]
[424728303,1781093439000,-17709.86641459,0.00013687,2]
[424728309,1781093439000,-500.0,0.00013699,2]
[424728313,1781093439000,-171.39317952,0.00013746,2]
[424728323,1781093439000,-228.0,0.0001382,2]
[424728330,1781093439000,-17709.86641458,0.00013957,2]
[424728315,1781093439000,-500.0,0.00013746,2]
[424728319,1781093439000,-316204.6482,0.00013747,2]
[424728317,1781093439000,-500.0,0.00013746,2]
[424728311,1781093439000,-1000.0,0.00013746,2]
[424728321,1781093439000,-224.0,0.0001382,2]
[424728327,1781093439000,-1602.13,0.00013831,2]
[424728325,1781093439000,-17709.86641458,0.00013822,2]
[424728328,1781093439000,-158.05,0.00013894,2]
[424728332,1781093439000,-250.0,0.00014,2]
[424728307,1781093439000,-200.0,0.00013699,2]
[424728401,1781093439000,-150.0,0.0001497,2]
[424728285,1781093439000,-500.0,0.00013646,2]
[424728405,1781093439000,-151.0,0.00014997,2]
[424728463,1781093439000,-500.0,0.00014999,2]
[424728473,1781093439000,-500.0,0.00014999,2]
[424728471,1781093439000,-450.0,0.00014999,2]
[424728477,1781093439000,-500.0,0.00014999,2]
[424728475,1781093439000,-177.99795774,0.00014999,2]
[424728483,1781093439000,-300.0,0.00014999,2]
[424728486,1781093439000,-500.0,0.00014999,2]
[424728479,1781093439000,-600.0,0.00014999,2]
[424728492,1781093439000,-478.58900576,0.00014999,2]
[424728499,1781093439000,-150.0,0.00014999,2]
[424728500,1781093439000,-180.0,0.00014999,2]
[424728489,1781093439000,-371.3061609,0.00014999,2]
[424728495,1781093439000,-500.0,0.00014999,2]
[424728469,1781093439000,-500.0,0.00014999,2]
[424728497,1781093439000,-217.15168601,0.00014999,2]
[424728510,1781093439000,-500.0,0.00014999,2]
[424728512,1781093439000,-500.0,0.00014999,2]
[424728502,1781093439000,-2000.0,0.00014999,2]
[424728504,1781093439000,-250.0,0.00014999,2]
[424728506,1781093439000,-500.0,0.00014999,2]
[424728514,1781093439000,-500.0,0.00014999,2]
[424728526,1781093439000,-500.0,0.00014999,2]
[424728520,1781093439000,-500.0,0.00014999,2]
[424728518,1781093439000,-500.0,0.00014999,2]
[424728516,1781093439000,-500.0,0.00014999,2]
[424728522,1781093439000,-500.0,0.00014999,2]
[424728528,1781093439000,-421.72,0.00014999,2]
[424728403,1781093439000,-166.67,0.00014978,2]
[424728508,1781093439000,-500.0,0.00014999,2]
[424728467,1781093439000,-500.0,0.00014999,2]
[424728524,1781093439000,-500.0,0.00014999,2]
[424728465,1781093439000,-600.0,0.00014999,2]
[424728481,1781093439000,-250.0,0.00014999,2]
[424728407,1781093439000,-500.0,0.00014999,2]
[424728409,1781093439000,-500.0,0.00014999,2]
[424728423,1781093439000,-500.0,0.00014999,2]
[424728399,1781093439000,-150.0,0.00014918,2]
[424728415,1781093439000,-500.0,0.00014999,2]
[424728411,1781093439000,-163.04007356,0.00014999,2]
[424728431,1781093439000,-500.0,0.00014999,2]
[424728429,1781093439000,-500.0,0.00014999,2]
[424728425,1781093439000,-500.0,0.00014999,2]
[424728419,1781093439000,-500.0,0.00014999,2]
[424728421,1781093439000,-500.0,0.00014999,2]
[424728427,1781093439000,-500.0,0.00014999,2]
[424728413,1781093439000,-500.0,0.00014999,2]
[424728417,1781093439000,-500.0,0.00014999,2]
[424728433,1781093439000,-500.0,0.00014999,2]
[424728435,1781093439000,-500.0,0.00014999,2]
[424728459,1781093439000,-500.0,0.00014999,2]
[424728455,1781093439000,-500.0,0.00014999,2]
[424728453,1781093439000,-500.0,0.00014999,2]
[424728457,1781093439000,-265.32856806,0.00014999,2]
[424728451,1781093439000,-500.0,0.00014999,2]
[424728449,1781093439000,-241.19874229,0.00014999,2]
[424728461,1781093439000,-500.0,0.00014999,2]
[424728447,1781093439000,-366.70768011,0.00014999,2]
[424728443,1781093439000,-500.0,0.00014999,2]
[424728441,1781093439000,-500.0,0.00014999,2]
[424728439,1781093439000,-500.0,0.00014999,2]
[424728437,1781093439000,-500.0,0.00014999,2]
[424728445,1781093439000,-500.0,0.00014999,2]
[424728530,1781093440000,-300.0,0.00014999,2]
[424728538,1781093440000,-666.0,0.00014999,2]
[424728536,1781093440000,-702.55853752,0.00014999,2]
[424728534,1781093440000,-300.0,0.00014999,2]
[424728542,1781093440000,-300.0,0.00014999,2]
[424728540,1781093440000,-300.0,0.00014999,2]
[424728544,1781093440000,-5968719.62782853,0.00015,2]
[424728546,1781093440000,-3824049.12456926,0.00015,2]
[424728532,1781093440000,-666.0,0.00014999,2]
[424728692,1781093441000,-2903.13387152,0.00015,2]
[424728689,1781093441000,-535.41792625,0.00015,2]
[424728747,1781093441000,-652.08200092,0.00015,2]
[424728749,1781093441000,-595.85768052,0.00015,2]
[424728752,1781093441000,-2874.02810723,0.00015,2]
[424728757,1781093441000,-311.98467859,0.00015,2]
[424728736,1781093441000,-223.0,0.00012501,2]
[424728765,1781093441000,-257560.92361088,0.00015,2]
[424728755,1781093441000,-404.75,0.00015,2]
[424728738,1781093441000,-1199.40298316,0.00015,2]
[424728741,1781093441000,-2962.65685451,0.00015,2]
[424728759,1781093441000,-1702.7567287,0.00015,2]
[424728971,1781093443000,-624.01252704,0.00015,2]
[424728960,1781093443000,-1051.48,0.00015,2]
[424728969,1781093443000,-685.62,0.00015,2]
[424729354,1781093446000,-1343.0,0.00015,2]
[424729335,1781093446000,-225.0,0.00012501,2]
[424729337,1781093446000,-198090.49028857,0.00015,2]
[424729353,1781093446000,-7911.54562378,0.00015,2]
[424729476,1781093586000,6016.87929547,0.00030137,120]
[424729477,1781093682000,9676.8,0.00029945,120]
[424729483,1781094110000,-227.0,0.0001264,2]
[424729481,1781094110000,-150.0,0.00012639,2]
[424729480,1781094110000,-220.45,0.00012538,2]
[424729479,1781094110000,-596.56,0.00012465,2]
[424729482,1781094110000,-228.0,0.0001264,2]
[424729485,1781094110000,-221.0,0.0001264,2]
[424729486,1781094110000,-223.0,0.0001264,2]
[424729488,1781094110000,-228.0,0.0001264,2]
[424729487,1781094110000,-227.0,0.0001264,2]
[424729490,1781094110000,-225.0,0.0001264,2]
[424729489,1781094110000,-222.0,0.0001264,2]
[424729484,1781094110000,-221.0,0.0001264,2]
[424729493,1781094111000,-227.0,0.0001264,2]
[424729491,1781094111000,-226.0,0.0001264,2]
[424729492,1781094111000,-221.0,0.0001264,2]
[424729495,1781094111000,-208.99,0.0001264,2]